bitfinex/quotes_SOLUSD_20241118
["timestamp","ask_amount","ask_price","bid_price","bid_amount"]
[1731912639925,171.33718554,242.72,242.62,12.23718554]
[1731912640125,175.45718554,242.72,242.62,12.23718554]
[1731912640444,0.09367462,242.71,242.62,12.23718554]
[1731912640831,0.09367462,242.71,242.62,16.35868554]
[1731912641349,0.25098,242.7,242.62,16.35868554]
[1731912641551,175.45718554,242.72,242.62,16.35868554]
[1731912641552,171.33718554,242.72,242.64,12.23718554]
[1731912641728,12.23718554,242.74,242.66,12.23718554]
[1731912642820,12.23718554,242.74,242.66,16.35798554]
[1731912643225,0.25098,242.75,242.68,12.23718554]
[1731912643426,0.25098,242.75,242.66,14.4232]
[1731912643427,0.25098,242.75,242.66,26.66038554]
[1731912643628,4.37048,242.75,242.66,26.66038554]
[1731912644652,0.25098,242.75,242.66,26.66038554]
[1731912645440,16.35598554,242.79,242.68,12.23718554]
[1731912645626,16.35598554,242.79,242.7,12.23718554]
[1731912645828,0.09367462,242.78,242.7,12.23718554]
[1731912646046,0.09367462,242.78,242.68,12.23718554]
[1731912646745,0.09367462,242.76,242.68,12.23718554]
[1731912647053,0.12549,242.75,242.68,16.35778554]
[1731912647232,0.12549,242.75,242.68,4.1206]
[1731912647432,12.36267554,242.75,242.68,4.1206]
[1731912647746,0.12549,242.74,242.68,4.1206]
[1731912649045,12.23718554,242.73,242.68,4.1206]
[1731912649926,12.23718554,242.73,242.66,10.3024]
[1731912653122,4.37048,242.75,242.66,10.3024]
[1731912653123,0.12549,242.7,242.66,10.3024]
[1731912654049,12.23718554,242.69,242.66,10.3024]
[1731912654351,12.23718554,242.69,242.61,14.4262]
[1731912654352,12.23718554,242.67,242.61,14.4262]
[1731912654932,4.21417462,242.69,242.61,14.4262]
[1731912654933,12.23718554,242.65,242.61,14.4262]
[1731912655247,12.23718554,242.65,242.61,10.3044]
[1731912657146,12.36267554,242.62,242.55,14.4296]
[1731912657357,12.23718554,242.59,242.55,14.4296]
[1731912658150,12.23718554,242.59,242.5,12.23718554]
[1731912658151,12.23718554,242.57,242.52,4.1232]
[1731912658330,0.12549,242.56,242.5,10.3092]
[1731912658530,12.23718554,242.55,242.5,14.4328]
[1731912658945,12.23718554,242.57,242.5,14.4328]
[1731912659321,0.09367462,242.61,242.5,14.4328]
[1731912659522,0.25098,242.61,242.55,12.23718554]
[1731912659728,0.12549,242.62,242.57,12.23718554]
[1731912660536,0.34465462,242.65,242.57,16.35968554]
[1731912665452,159.1,242.69,242.63,12.23718554]
[1731912665756,4.1204,242.7,242.63,12.23718554]
[1731912666339,16.35758554,242.7,242.61,12.23718554]
[1731912666541,0.09367462,242.69,242.61,16.35888554]
[1731912667337,0.21916462,242.69,242.61,16.35888554]
[1731912668058,0.21916462,242.69,242.59,12.23718554]
[1731912668436,12.23718554,242.64,242.57,10.3063]
[1731912668642,0.12549,242.63,242.57,10.3063]
[1731912668947,12.23718554,242.62,242.57,10.3063]
[1731912669861,0.12549,242.63,242.57,10.3063]
[1731912670158,0.25098,242.63,242.57,10.3063]
[1731912670770,0.12549,242.63,242.57,10.3063]
[1731912671442,12.23718554,242.64,242.57,10.3063]
[1731912671763,0.12549,242.65,242.57,22.54348554]
[1731912672074,0.12549,242.65,242.57,26.66598554]
[1731912673266,0.12549,242.65,242.57,26.63693435]
[1731912674167,12.23718554,242.62,242.57,10.27724881]
[1731912674365,12.23718554,242.62,242.57,14.39974881]
[1731912674764,0.12549,242.63,242.57,14.39974881]
[1731912674968,0.12549,242.63,242.57,10.27724881]
[1731912675137,12.23718554,242.61,242.57,10.27724881]
[1731912675343,12.36267554,242.63,242.57,10.27724881]
[1731912675568,12.23718554,242.61,242.54,4.1229]
[1731912675867,12.23718554,242.61,242.54,14.4304]
[1731912676240,12.48816554,242.63,242.54,14.4304]
[1731912677240,12.23718554,242.65,242.55,12.23718554]
[1731912678764,12.23718554,242.65,242.56,14.4293]
[1731912681348,12.23718554,242.61,242.56,10.3067]
[1731912681971,12.36267554,242.63,242.56,10.3067]
[1731912682380,0.12549,242.62,242.56,10.3067]
[1731912683372,12.23718554,242.59,242.53,4.1232]
[1731912683674,12.23718554,242.59,242.51,14.432]
[1731912685855,171.33718554,242.63,242.54,12.23718554]
[1731912686369,159.1,242.63,242.56,12.23718554]
[1731912687576,0.34465462,242.64,242.56,12.23718554]
[1731912687750,0.12549,242.64,242.56,12.23718554]
[1731912688076,12.23718554,242.65,242.57,4.1225]
[1731912688256,12.23718554,242.65,242.57,14.4288]
[1731912693567,0.34465462,242.64,242.57,14.4288]
[1731912693768,12.23718554,242.63,242.55,4.1227]
[1731912693975,12.23718554,242.59,242.52,10.3081]
[1731912694173,12.23718554,242.59,242.52,14.4314]
[1731912694370,7.83687569,242.58,242.52,14.4314]
[1731912694587,0.12549,242.57,242.52,10.3081]
[1731912695061,7.83687569,242.56,242.52,10.3081]
[1731912695257,159.1,242.61,242.52,10.3081]
[1731912695258,7.83687569,242.58,242.52,10.3081]
[1731912695484,159.1,242.61,242.52,10.3081]
[1731912695485,159.1,242.61,242.53,7.83687569]
[1731912695680,159.1,242.61,242.54,4.123]
[1731912695883,7.83687569,242.6,242.54,4.123]
[1731912696383,12.24274545,242.6,242.54,4.123]
[1731912696580,0.12549,242.59,242.54,4.123]
[1731912696787,12.24274545,242.6,242.54,4.123]
[1731912697370,12.24274545,242.62,242.54,14.4305]
[1731912697878,12.36823545,242.64,242.55,12.24274545]
[1731912698182,0.12549,242.63,242.55,12.24274545]
[1731912699179,12.24274545,242.62,242.54,14.4305]
[1731912699572,0.12549,242.63,242.55,12.24274545]
[1731912699774,0.12549,242.63,242.56,4.1226]
[1731912700278,0.12549,242.63,242.56,14.4293]
[1731912700489,16.36374545,242.66,242.57,12.24274545]
[1731912700990,0.12549,242.65,242.57,12.24274545]
[1731912701584,0.12549,242.65,242.58,4.1223]
[1731912702696,12.24274545,242.64,242.56,10.3067]
[1731912703297,0.34465462,242.63,242.56,10.3067]
[1731912703588,12.24274545,242.62,242.56,10.3067]
[1731912703887,0.12549,242.61,242.56,10.3067]
[1731912706474,0.12549,242.61,242.52,12.24274545]
[1731912706975,12.24274545,242.6,242.52,12.24274545]
[1731912707471,12.24274545,242.6,242.53,14.4312]
[1731912709269,12.24274545,242.58,242.53,10.308]
[1731912709681,12.24274545,242.58,242.53,14.4312]
[1731912710078,4.24739,242.61,242.53,14.4312]
[1731912710079,12.24274545,242.56,242.53,10.308]
[1731912710397,0.12549,242.59,242.53,10.308]
[1731912710398,12.24274545,242.58,242.53,10.308]
[1731912710573,12.24274545,242.58,242.53,14.4312]
[1731912711285,12.24274545,242.58,242.53,10.308]
[1731912712596,12.36823545,242.6,242.53,10.308]
[1731912712801,12.24274545,242.6,242.53,10.308]
[1731912713092,12.24274545,242.62,242.53,10.308]
[1731912713292,0.12549,242.61,242.53,10.308]
[1731912714400,0.12549,242.61,242.53,14.4312]
[1731912716375,0.12549,242.61,242.53,10.308]
[1731912716807,0.21916462,242.52,242.4,38.74261105]
[1731912716975,0.12549,242.46,242.4,10.3133]
[1731912717174,24.12153862,242.5,242.4,10.3133]
[1731912717482,0.25098,242.46,242.4,10.3133]
[1731912717669,7.92835342,242.5,242.4,14.4387]
[1731912717874,0.25098,242.49,242.41,7.8346788]
[1731912718092,30.0,242.51,242.43,7.8346788]
[1731912718294,0.25098,242.54,242.45,7.8346788]
[1731912718576,0.25098,242.54,242.46,4.1243]
[1731912718802,166.9346788,242.57,242.47,7.8346788]
[1731912719110,0.09367462,242.56,242.47,7.8346788]
[1731912719900,0.09367462,242.56,242.48,4.124]
[1731912720107,0.25098,242.55,242.48,4.124]
[1731912720277,8.0856588,242.55,242.48,4.124]
[1731912721283,8.0856588,242.55,242.46,14.4352]
[1731912721601,0.25098,242.52,242.46,14.4352]
[1731912722105,0.25098,242.52,242.46,10.3109]
[1731912722701,0.12549,242.52,242.46,10.3109]
[1731912723000,159.1,242.63,242.47,15.7695]
[1731912723206,0.25098,242.56,242.47,23.6041788]
[1731912723381,0.25098,242.56,242.48,4.124]
[1731912723781,7.8346788,242.55,242.48,4.124]
[1731912724012,0.25098,242.54,242.48,4.124]
[1731912724807,0.12549,242.52,242.47,15.7695]
[1731912725213,0.12549,242.52,242.46,10.3109]
[1731912725395,0.25098,242.5,242.43,7.8346788]
[1731912725595,0.12549,242.5,242.43,7.8346788]
[1731912725792,0.12549,242.5,242.42,4.125]
[1731912725793,20.0,242.59,242.48,7.8346788]
[1731912726014,7.8346788,242.6,242.5,7.8346788]
[1731912726895,7.8346788,242.6,242.5,11.9582788]
[1731912726896,0.09367462,242.59,242.5,11.9582788]
[1731912727300,0.12549,242.58,242.5,11.9582788]
[1731912727812,0.25098,242.58,242.5,11.9582788]
[1731912728408,0.25098,242.55,242.48,10.3098]
[1731912728891,7.8346788,242.54,242.48,10.3098]
[1731912729092,0.12549,242.51,242.44,4.1246]
[1731912729292,0.25098,242.51,242.44,4.1246]
[1731912731796,0.12549,242.49,242.44,4.1246]
[1731912732421,0.25098,242.49,242.43,10.3122]
[1731912732621,0.25098,242.47,242.43,10.3122]
[1731912733321,0.09367462,242.48,242.43,10.3122]
[1731912733688,7.8346788,242.44,242.38,10.3143]
[1731912733892,0.25098,242.43,242.38,10.3143]
[1731912736622,0.25098,242.43,242.32,20.0]
[1731912736791,0.25098,242.43,242.31,10.3173]
[1731912736792,0.25098,242.43,242.35,7.8346788]
[1731912736991,0.12549,242.47,242.37,7.8346788]
[1731912737215,0.25098,242.46,242.37,7.8346788]
[1731912737621,0.25098,242.46,242.39,7.8346788]
[1731912737813,20.0,242.53,242.41,7.8346788]
[1731912738008,7.8346788,242.5,242.41,7.8346788]
[1731912738608,0.09367462,242.49,242.41,7.8346788]
[1731912738917,0.09367462,242.49,242.42,4.125]
[1731912739218,0.21916462,242.49,242.42,4.125]
[1731912739425,0.12549,242.48,242.42,4.125]
[1731912739600,0.12549,242.48,242.42,11.9596788]
[1731912739803,0.21916462,242.47,242.42,7.8346788]
[1731912739997,0.09367462,242.45,242.38,4.1257]
[1731912740218,0.25098,242.44,242.38,11.9602788]
[1731912742193,38.53390901,242.75,242.58,0.1]
[1731912742397,16.3486,242.86,242.5,44.027864]
[1731912742398,6.5493,242.92,242.74,15.6693576]
[1731912742611,7.8346788,242.89,242.77,23.776884]
[1731912742901,7.8346788,242.87,242.75,7.8346788]
[1731912743101,7.8346788,242.87,242.73,10.33086059]
[1731912743102,123.5905788,242.87,242.73,10.33086059]
[1731912743301,123.5905788,242.87,242.64,15.669358]
[1731912743302,7.8346788,242.83,242.72,7.8346788]
[1731912743599,7.8346788,242.83,242.71,7.8346788]
[1731912743799,7.8346788,242.85,242.73,7.8346788]
[1731912744347,0.09367462,242.85,242.75,12.2211122]
[1731912744626,0.09367462,242.85,242.66,14.4233]
[1731912744627,115.7559,242.87,242.77,12.2211122]
[1731912745201,0.09367462,242.86,242.77,12.2211122]
[1731912745403,4.1171,242.89,242.81,12.2211122]
[1731912745904,0.09367462,242.89,242.71,0.1]
[1731912746105,0.09367462,242.89,242.82,12.2211122]
[1731912746720,20.34465462,242.89,242.82,12.2211122]
[1731912746923,20.34465462,242.89,242.8,12.2211122]
[1731912747124,20.25098,242.89,242.8,12.2211122]
[1731912747423,0.34465462,242.88,242.82,12.2211122]
[1731912749821,24.46205462,242.88,242.8,12.2211122]
[1731912750001,0.12549,242.83,242.78,22.5184122]
[1731912750209,0.25098,242.83,242.78,22.5184122]
[1731912750706,0.09367462,242.82,242.66,20.6049]
[1731912751037,0.09367462,242.82,242.58,0.1]
[1731912751038,0.12549,242.72,242.65,12.2211122]
[1731912751243,0.12549,242.73,242.59,0.1]
[1731912751538,0.12549,242.73,242.58,0.2]
[1731912751874,0.12549,242.73,242.69,12.2211122]
[1731912752127,0.12549,242.73,242.69,16.3415122]
[1731912752706,0.25098,242.78,242.71,12.2211122]
[1731912752911,0.25098,242.78,242.73,12.2211122]
[1731912753910,12.2211122,242.88,242.76,12.2211122]
[1731912754110,12.2211122,242.88,242.79,12.2211122]
[1731912754310,0.09367462,242.85,242.77,12.2211122]
[1731912755229,0.09367462,242.83,242.75,12.2211122]
[1731912755410,0.25098,242.8,242.73,10.299]
[1731912755604,0.25098,242.77,242.69,12.2211122]
[1731912755806,12.4720922,242.77,242.69,12.2211122]
[1731912756136,0.25098,242.75,242.67,22.5229122]
[1731912756835,0.25098,242.75,242.69,12.2211122]
[1731912757425,12.2211122,242.81,242.71,12.2211122]
[1731912757617,20.25098,242.8,242.71,12.2211122]
[1731912757827,119.8743,242.82,242.71,12.2211122]
[1731912757828,0.12549,242.76,242.71,12.2211122]
[1731912758041,0.12549,242.76,242.69,12.2211122]
[1731912758332,0.25098,242.73,242.61,20.0]
[1731912758541,0.25098,242.73,242.66,12.2211122]
[1731912758721,0.12549,242.73,242.68,12.2211122]
[1731912758925,20.25098,242.77,242.7,12.2211122]
[1731912759223,20.25098,242.75,242.68,22.5227122]
[1731912759628,20.25098,242.75,242.68,10.3016]
[1731912760039,0.25098,242.75,242.68,10.3016]
[1731912760222,20.25098,242.75,242.68,10.3016]
[1731912760539,20.25098,242.73,242.68,10.3016]
[1731912760912,20.25098,242.71,242.64,16.3424122]
[1731912761715,20.25098,242.73,242.64,16.3424122]
[1731912761941,20.25098,242.73,242.66,12.2211122]
[1731912762339,20.25098,242.71,242.64,14.4246]
[1731912763236,20.25098,242.71,242.64,10.3033]
[1731912763437,0.09367462,242.66,242.58,22.5267122]
[1731912763748,0.25098,242.64,242.58,10.3056]
[1731912763925,20.25098,242.62,242.54,12.2211122]
[1731912764118,20.25098,242.62,242.48,12.2211122]
[1731912764119,20.25098,242.56,242.48,12.2211122]
[1731912764319,20.12549,242.56,242.48,12.2211122]
[1731912764551,20.12549,242.56,242.5,12.2211122]
[1731912764838,20.12549,242.63,242.54,12.2211122]
[1731912765036,20.12549,242.63,242.58,12.2211122]
[1731912765449,20.0,242.67,242.58,12.2211122]
[1731912765614,20.0,242.67,242.52,12.2211122]
[1731912765615,0.25098,242.66,242.6,12.2211122]
[1731912765819,0.25098,242.67,242.6,12.2211122]
[1731912767043,20.12549,242.67,242.61,12.2211122]
[1731912767545,12.2211122,242.72,242.63,12.2211122]
[1731912768614,12.2211122,242.72,242.64,4.1213]
[1731912768825,0.12549,242.71,242.64,4.1213]
[1731912769135,0.12549,242.67,242.59,22.5265122]
[1731912770348,0.12549,242.67,242.59,12.2211122]
[1731912771143,12.2211122,242.7,242.61,35.9979962]
[1731912771448,115.7559,242.74,242.63,12.2211122]
[1731912771748,4.1193,242.76,242.63,12.2211122]
[1731912771749,12.2211122,242.72,242.63,12.2211122]
[1731912771957,12.2211122,242.74,242.65,12.2211122]
[1731912772135,20.0,242.73,242.65,12.2211122]
[1731912772736,0.12549,242.72,242.65,12.2211122]
[1731912773237,0.25098,242.73,242.66,14.4233]
[1731912774225,0.12549,242.73,242.66,14.4233]
[1731912774633,12.2211122,242.76,242.67,12.2211122]
[1731912774960,6.4891,242.81,242.73,12.2211122]
[1731912775139,18.7102122,242.81,242.73,12.2211122]
[1731912775457,18.7102122,242.81,242.72,23.776884]
[1731912776755,18.7102122,242.81,242.73,14.4193]
[1731912776953,12.2211122,242.81,242.73,26.6404122]
[1731912777948,12.2211122,242.81,242.74,23.776884]
[1731912779323,12.2211122,242.81,242.75,14.418]
[1731912779928,4.1176,242.86,242.75,14.418]
[1731912779929,12.2211122,242.79,242.75,10.2986]
[1731912781334,12.2211122,242.77,242.7,38.197884]
[1731912781755,12.2211122,242.77,242.7,14.421]
[1731912781962,0.12549,242.78,242.71,12.2211122]
[1731912782161,0.12549,242.81,242.73,12.2211122]
[1731912783655,0.12549,242.81,242.74,14.4186]
[1731912784354,12.2211122,242.82,242.75,23.776884]
[1731912785039,12.2211122,242.82,242.76,4.1192]
[1731912785245,12.2211122,242.8,242.76,4.1192]
[1731912785760,12.2211122,242.82,242.76,14.4174]
[1731912786836,12.2211122,242.82,242.76,10.2982]
[1731912787355,0.09367462,242.76,242.67,4.1208]
[1731912787559,12.2211122,242.72,242.67,14.4228]
[1731912788571,12.2211122,242.74,242.67,10.302]
[1731912788862,12.2211122,242.68,242.62,10.304]
[1731912789051,12.2211122,242.68,242.62,14.4256]
[1731912789566,20.25098,242.69,242.62,14.4256]
[1731912789739,6.5482,242.74,242.65,12.2211122]
[1731912789938,6.5482,242.74,242.62,14.4256]
[1731912789939,20.0,242.71,242.62,14.4256]
[1731912790158,20.0,242.71,242.64,23.776884]
[1731912790763,20.0,242.71,242.64,14.4246]
[1731912791844,0.12549,242.7,242.64,14.4246]
[1731912792042,12.2211122,242.72,242.64,14.4246]
[1731912792244,0.12549,242.71,242.64,14.4246]
[1731912793341,0.12549,242.69,242.64,10.3033]
[1731912793556,0.12549,242.69,242.64,14.4246]
[1731912793953,12.2211122,242.7,242.64,14.4246]
[1731912794270,20.12549,242.71,242.64,10.3033]
[1731912796262,6.5482,242.74,242.66,12.2211122]
[1731912796570,12.2211122,242.8,242.72,12.2211122]
[1731912796882,12.2211122,242.8,242.7,12.2211122]
[1731912797068,12.2211122,242.8,242.71,23.776884]
[1731912798273,12.2211122,242.8,242.72,14.4198]
[1731912798968,12.2211122,242.78,242.72,14.4198]
[1731912799673,20.12549,242.77,242.72,10.2999]
[1731912799854,20.12549,242.77,242.72,14.4198]
[1731912800161,12.2211122,242.76,242.72,10.2999]
[1731912800358,0.12549,242.72,242.62,12.2211122]
[1731912800567,12.2211122,242.69,242.63,10.3037]
[1731912801655,0.12549,242.72,242.6,32.8305122]
[1731912801656,12.2211122,242.71,242.62,12.2211122]
[1731912802069,12.2211122,242.71,242.63,23.776884]
[1731912802253,12.3466022,242.73,242.64,12.2211122]
[1731912802462,12.3466022,242.73,242.65,23.776884]
[1731912802967,12.2211122,242.77,242.68,12.2211122]
[1731912803148,12.2211122,242.77,242.69,23.776884]
[1731912803349,16.3397122,242.8,242.71,12.2211122]
[1731912803549,16.3397122,242.8,242.64,12.2211122]
[1731912803550,6.5482,242.81,242.73,12.2211122]
[1731912803856,10.6666,242.81,242.73,12.2211122]
[1731912804397,10.6666,242.81,242.75,12.2211122]
[1731912804398,6.5482,242.81,242.75,12.2211122]
[1731912804965,6.5482,242.81,242.74,23.776884]
[1731912805271,10.6667,242.81,242.73,12.2211122]
[1731912805651,20.0,242.8,242.73,12.2211122]
[1731912805861,0.25098,242.79,242.73,12.2211122]
[1731912806072,0.25098,242.79,242.73,23.776884]
[1731912807679,12.3466022,242.77,242.68,40.1184962]
[1731912807867,20.12549,242.76,242.68,40.1184962]
[1731912808071,0.12549,242.75,242.68,40.1184962]
[1731912808270,0.12549,242.75,242.68,12.2211122]
[1731912808878,20.21916462,242.74,242.66,12.2211122]
[1731912809181,0.09367462,242.7,242.64,12.2211122]
[1731912809363,0.12549,242.7,242.64,12.2211122]
[1731912809881,0.25098,242.71,242.64,16.3423122]
[1731912810268,30.25098,242.71,242.64,16.3423122]
[1731912810467,30.25098,242.71,242.65,23.776884]
[1731912810468,0.25098,242.71,242.65,23.776884]
[1731912811164,0.09367462,242.7,242.62,12.2211122]
[1731912811369,12.2211122,242.67,242.58,12.2211122]
[1731912811890,20.34465462,242.66,242.58,12.2211122]
[1731912813563,24.46565462,242.66,242.59,23.776884]
[1731912814357,0.25098,242.64,242.58,23.776884]
[1731912814563,20.0,242.66,242.58,50.4259962]
[1731912816883,20.0,242.66,242.6,12.2211122]
[1731912817067,20.0,242.68,242.61,23.776884]
[1731912817584,6.5482,242.69,242.63,23.776884]
[1731912818379,0.09367462,242.68,242.63,23.776884]
[1731912818583,0.09367462,242.68,242.61,23.776884]
[1731912818755,20.0,242.68,242.63,23.776884]
[1731912818959,6.5482,242.69,242.63,23.776884]
[1731912819157,20.0,242.68,242.63,23.776884]
[1731912820487,20.0,242.68,242.61,23.776884]
[1731912820488,0.25098,242.67,242.61,23.776884]
[1731912820889,12.4720922,242.67,242.61,23.776884]
[1731912821089,20.0,242.66,242.61,23.776884]
[1731912821673,18.7693122,242.69,242.61,10.3046]
[1731912821866,20.0,242.68,242.62,23.776884]
[1731912822069,10.2985,242.76,242.68,23.776884]
[1731912822070,18.2662122,242.76,242.68,23.776884]
[1731912822375,12.2211122,242.72,242.65,23.776884]
[1731912822585,12.2211122,242.68,242.62,23.776884]
[1731912823189,115.7559,242.75,242.62,23.776884]
[1731912823190,12.2211122,242.66,242.62,23.776884]
[1731912823390,12.2211122,242.66,242.61,10.3046]
[1731912823697,12.2211122,242.64,242.61,10.3046]
[1731912823879,12.2211122,242.64,242.56,14.4293]
[1731912825002,12.2211122,242.64,242.57,23.776884]
[1731912825171,12.2211122,242.64,242.59,23.776884]
[1731912826673,12.2211122,242.64,242.61,23.776884]
[1731912827291,18.2662122,242.64,242.61,23.776884]
[1731912827874,6.0451,242.64,242.61,23.776884]
[1731912828896,18.2662122,242.64,242.59,23.776884]
[1731912829806,18.2662122,242.64,242.59,27.898884]
[1731912830979,12.2211122,242.62,242.59,27.898884]
[1731912831498,12.2211122,242.69,242.59,38.204284]
[1731912831698,12.2211122,242.69,242.61,23.776884]
[1731912831900,12.2211122,242.69,242.63,23.776884]
[1731912833002,12.2211122,242.64,242.63,23.776884]
[1731912833684,12.2211122,242.64,242.57,10.3061]
[1731912835000,12.2211122,242.64,242.59,4.1221]
[1731912835607,12.2211122,242.64,242.6,23.776884]
[1731912837506,12.2211122,242.64,242.58,23.776884]
[1731912837693,12.2211122,242.64,242.58,38.204984]
[1731912843379,12.2211122,242.66,242.58,38.204984]
[1731912845304,12.2211122,242.6,242.53,10.3077]
[1731912845610,12.2211122,242.58,242.54,4.1229]
[1731912845828,12.2211122,242.56,242.53,10.3077]
[1731912846195,12.2211122,242.56,242.53,14.4309]
[1731912846615,12.2211122,242.58,242.53,14.4309]
[1731912847195,12.2211122,242.58,242.54,23.776884]
[1731912848397,12.2211122,242.58,242.55,4.1228]
[1731912849694,12.2211122,242.56,242.5,4.1236]
[1731912849893,12.2211122,242.52,242.48,14.4337]
[1731912850503,12.2211122,242.5,242.44,4.1246]
[1731912850702,12.2211122,242.48,242.43,10.312]
[1731912850898,12.2211122,242.46,242.4,4.1253]
[1731912851408,6.66579,242.47,242.4,14.4388]
[1731912851710,12.2211122,242.46,242.4,14.4388]
[1731912854525,6.5403,242.47,242.4,14.4388]
[1731912854828,18.7614122,242.47,242.41,23.776884]
[1731912854997,12.2211122,242.47,242.41,23.776884]
[1731912855518,12.2211122,242.47,242.4,14.4388]
[1731912855717,12.2211122,242.45,242.4,14.4388]
[1731912856710,12.2211122,242.45,242.4,10.3135]
[1731912857422,0.12549,242.42,242.35,4.1261]
[1731912857714,12.2211122,242.39,242.35,4.1261]
[1731912857925,12.2211122,242.39,242.34,14.442]
[1731912858799,6.5403,242.4,242.34,10.3156]
[1731912860114,6.5403,242.4,242.37,23.776884]
[1731912860328,30.0,242.42,242.37,23.776884]
[1731912860502,12.2211122,242.45,242.37,35.9979962]
[1731912860700,18.7614122,242.47,242.37,35.9979962]
[1731912860900,18.7614122,242.47,242.4,23.776884]
[1731912861505,6.5403,242.47,242.4,23.776884]
[1731912861703,18.7614122,242.47,242.4,23.776884]
[1731912862225,6.5403,242.47,242.41,4.1252]
[1731912862427,6.5403,242.47,242.41,14.4383]
[1731912864119,6.5403,242.47,242.42,23.776884]
[1731912865238,15.208,242.49,242.44,23.776884]
[1731912865739,12.2211122,242.53,242.41,14.4383]
[1731912865740,12.2211122,242.53,242.46,23.776884]
[1731912866197,12.2211122,242.53,242.47,14.4347]
[1731912866399,4.1224,242.58,242.47,14.4347]
[1731912866400,12.2211122,242.58,242.49,12.2211122]
[1731912866805,12.2211122,242.54,242.48,23.776884]
[1731912867024,12.2211122,242.52,242.47,14.4347]
[1731912868222,12.2211122,242.5,242.4,12.2211122]
[1731912868427,12.2211122,242.5,242.43,23.776884]
[1731912869408,12.2211122,242.5,242.43,4.1248]
[1731912869918,28.0370122,242.5,242.43,4.1248]
[1731912870626,12.2211122,242.48,242.43,4.1248]
[1731912870825,12.2211122,242.48,242.42,10.3124]
[1731912871706,12.2211122,242.48,242.42,14.4374]
[1731912871905,12.2211122,242.48,242.42,10.3124]
[1731912872312,12.2211122,242.46,242.42,10.3124]
[1731912873130,0.12549,242.47,242.42,10.3124]
[1731912873300,12.3466022,242.49,242.42,10.3124]
[1731912873611,12.2211122,242.47,242.39,4.1255]
[1731912873816,0.12549,242.44,242.36,10.3149]
[1731912874022,0.12549,242.44,242.36,14.4408]
[1731912874023,0.12549,242.42,242.36,14.4408]
[1731912874228,0.12549,242.42,242.36,10.3149]
[1731912874407,12.2211122,242.41,242.36,10.3149]
[1731912876203,12.2211122,242.45,242.36,22.5360122]
[1731912876422,12.2211122,242.47,242.39,23.776884]
[1731912877004,0.09367462,242.44,242.36,22.5360122]
[1731912877203,12.2211122,242.43,242.36,22.5360122]
[1731912877425,12.2211122,242.43,242.36,10.3149]
[1731912878005,0.12549,242.44,242.36,26.6620122]
[1731912878737,0.12549,242.44,242.36,14.4409]
[1731912879455,12.2211122,242.43,242.36,14.4409]
[1731912880709,0.12549,242.44,242.36,12.2211122]
[1731912881807,0.12549,242.44,242.34,12.2211122]
[1731912882013,0.12549,242.44,242.35,23.776884]
[1731912883106,0.12549,242.44,242.36,14.4412]
[1731912883823,12.2211122,242.43,242.36,14.4412]
[1731912887045,12.2211122,242.41,242.36,10.3152]
[1731912887743,12.3466022,242.39,242.31,10.3172]
[1731912888151,12.2211122,242.37,242.31,10.3172]
[1731912891632,0.12549,242.36,242.31,10.3172]
[1731912891953,12.2211122,242.35,242.31,10.3172]
[1731912892126,12.2211122,242.35,242.29,4.1272]
[1731912892329,12.2211122,242.33,242.26,10.3191]
[1731912892529,12.2211122,242.33,242.27,4.1276]
[1731912893236,0.21916462,242.32,242.26,10.3191]
[1731912894329,12.2211122,242.31,242.26,10.3191]
[1731912896454,0.21916462,242.32,242.26,10.3191]
[1731912896643,12.2211122,242.33,242.26,10.3191]
[1731912899749,12.2211122,242.38,242.29,12.2211122]
[1731912900467,34.4686122,242.4,242.3,23.776884]
[1731912900644,34.4686122,242.4,242.32,23.776884]
[1731912901360,22.2281,242.46,242.37,23.776884]
[1731912901563,34.4492122,242.46,242.37,23.776884]
[1731912902649,34.4492122,242.46,242.38,4.1257]
[1731912903167,34.4492122,242.46,242.38,14.44]
[1731912903464,12.2211122,242.53,242.44,12.2211122]
[1731912904073,12.2211122,242.53,242.45,23.776884]
[1731912904359,12.2211122,242.53,242.44,12.2211122]
[1731912904360,12.2211122,242.47,242.38,14.44]
[1731912904564,12.2211122,242.47,242.39,23.776884]